[Event "XLV Badalona Open 2019"]
[Site "Badalona"]
[Date "2019.08.10"]
[Round "9.1"]
[White "Rojas Keim, Luis"]
[Black "Hernandez, Cristian Andres"]
[Result "0-1"]
[ECO "B31"]
[WhiteElo "2338"]
[BlackElo "2355"]
[Annotator "NA"]
[PlyCount "92"]
[EventDate "2019.08.02"]
[EventType "swiss"]
[EventCountry "ESP"]
[SourceTitle "playchess.com"]
[Source "ChessBase"]
[SourceQuality "1"]
[TimeControl "5400+30"]

1. e4 {[%emt 0:00:00]} c5 {[%emt 0:07:11]} 2. Nf3 {[%emt 0:00:00]} Nc6 {[%emt 0:00:40]} 3. Bb5 {[%emt 0:00:36]} g6 {[%emt 0:01:05]} 4. Bxc6 {[%emt 0:00:25]} dxc6 {[%emt 0:00:19]} 5. d3 {[%emt 0:00:11]} Bg7 {[%emt 0:00:37]} 6. Nc3 {[%emt 0:00:11]} Nf6 {[%emt 0:00:33]} 7. Be3 Nd7 {[%emt 0:01:32]} 8. Qd2 {[%emt 0:00:20]} h6 {[%emt 0:00:31]} 9. O-O {[%emt 0:04:30]} e5 {[%emt 0:11:44]} 10. a3 {[%emt 0:07:28]} b6 11. b4 Nf8 {[%emt 0:06:08]} 12. bxc5 {[%emt 0:01:11]} Ne6 13. cxb6 {[%emt 0:09:20]} axb6 {[%emt 0:00:09]} 14. Ne2 {[%emt 0:11:27]} f5 {[%emt 0:05:31]} 15. Qb4 {[%emt 0:03:39]} c5 {[%emt 0:08:15]} 16. Qb2 {[%emt 0:04:39]} O-O 17. Rab1 fxe4 {[%emt 0:06:04]} 18. dxe4 {[%emt 0:00:37]} Nd4 {[%emt 0:00:00]} 19. Bxd4 {[%emt 0:06:57]} cxd4 {[%emt 0:29:54]} 20. Qxb6 {[%emt 0:15:49]} Qe8 {[%emt 0:03:05]} 21. Qc5 {[%emt 0:07:06]} Bg4 {[%emt 0:02:38]} 22. Qc4+ {[%emt 0:02:08]} Kh8 {[%emt 0:01:09]} 23. Qd3 {[%emt 0:01:20]} Qe7 24. Rb3 Be6 {[%emt 0:02:36]} 25. Rb4 {[%emt 0:00:41]} Ra7 {[%emt 0:01:26]} 26. Nd2 {[%emt 0:05:23]} Rfa8 27. Nb3 {[%emt 0:02:16]} Rxa3 {[%emt 0:01:04]} 28. Rb6 {[%emt 0:01:26]} Rc8 {[%emt 0:02:25]} 29. Rb1 Ra2 {[%emt 0:01:25]} 30. Rc1 {[%emt 0:04:52]} Bc4 31. Qf3 {[%emt 0:04:07]} Rf8 {[%emt 0:02:11]} 32. Qg4 {[%emt 0:00:16]} h5 {[%emt 0:01:07]} 33. Qxg6 {[%emt 0:00:07]} Bxe2 {[%emt 0:00:06]} 34. Re1 Bc4 {[%emt 0:01:36]} 35. Qxh5+ {[%emt 0:01:04]} Kg8 {[%emt 0:00:03]} 36. Qd1 {[%emt 0:02:05]} Qc7 {[%emt 0:00:36]} 37. Rg6 {[%emt 0:01:00]} Qf7 {[%emt 0:00:19]} 38. Rg3 {[%emt 0:00:25]} Qxf2+ {[%emt 0:00:08]} 39. Kh1 {[%emt 0:00:00]} Qxe1+ {[%emt 0:02:29]} 40. Qxe1 {[%emt 0:00:02]} Rf1+ {[%emt 0:00:08]} 41. Qxf1 {[%emt 0:00:08]} Bxf1 {[%emt 0:00:02]} 42. Nc5 {[%emt 0:00:13]} Rxc2 {[%emt 0:01:41]} 43. Ne6 {[%emt 0:00:10]} Bc4 {[%emt 0:00:04]} 44. Rxg7+ {[%emt 0:00:36]} Kh8 {[%emt 0:00:02]} 45. Kg1 {[%emt 0:00:45]} Bxe6 {[%emt 0:00:46]} 46. Rg5 {[%emt 0:00:15]} d3 {[%emt 0:00:18]} 0-1

[Event "XLV Badalona Open 2019"]
[Site "Badalona"]
[Date "2019.08.10"]
[Round "9.2"]
[White "Mascaro March, Pedro"]
[Black "Sturt, Raven"]
[Result "1-0"]
[ECO "A48"]
[WhiteElo "2376"]
[BlackElo "2429"]
[Annotator "NA"]
[PlyCount "97"]
[EventDate "2019.08.02"]
[EventType "swiss"]
[EventCountry "ESP"]
[SourceTitle "playchess.com"]
[Source "ChessBase"]
[SourceQuality "1"]
[TimeControl "5400+30"]

1. d4 {[%emt 0:06:09]} Nf6 {[%emt 0:00:00]} 2. Nf3 {[%emt 0:00:08]} g6 {[%emt 0:00:09]} 3. Bg5 {[%emt 0:00:35]} Bg7 {[%emt 0:02:53]} 4. Nbd2 {[%emt 0:04:02]} d6 {[%emt 0:02:47]} 5. c3 {[%emt 0:00:27]} h6 {[%emt 0:02:51]} 6. Bh4 {[%emt 0:04:37]} O-O {[%emt 0:00:40]} 7. e4 {[%emt 0:06:31]} Nh5 {[%emt 0:02:29]} 8. Bc4 {[%emt 0:02:33]} Qe8 {[%emt 0:01:29]} 9. O-O {[%emt 0:06:40]} Nc6 10. Re1 {[%emt 0:00:46]} e5 {[%emt 0:00:50]} 11. dxe5 {[%emt 0:00:49]} dxe5 {[%emt 0:03:53]} 12. a4 Kh8 13. Qc2 Bd7 14. b4 Ne7 15. a5 g5 16. Bg3 Ng6 17. Nf1 Bf6 18. Ne3 g4 19. Nd2 Nhf4 20. f3 gxf3 21. Nxf3 Rg8 22. Qb3 Be6 23. Bxe6 fxe6 24. Kh1 h5 25. Rad1 Rg7 26. Rd2 h4 27. Bf2 Qf7 28. h3 Be7 29. Qd1 Rag8 30. Ng4 Nxg2 31. Kxg2 Nf4+ 32. Kh1 Nxh3 33. Nfh2 Qh5 34. Be3 Bg5 35. Bxg5 Qxg5 36. Qe2 Rf8 37. Qe3 Nf4 38. Red1 Rff7 39. Rg1 Qh5 40. Nf3 Rf8 41. Nfxe5 Ng6 42. Nxg6+ Rxg6 43. Qd4+ Rg7 44. Qe5 Qg6 45. Rdg2 Rf3 46. Kh2 Rd3 47. Nf2 Rg3 48. Rxg3 hxg3+ 49. Rxg3 1-0

[Event "XLV Badalona Open 2019"]
[Site "Badalona"]
[Date "2019.08.10"]
[Round "9.3"]
[White "Lorenzo De La Riva, Lazaro"]
[Black "Berdayes Ason, Dylan Isidro"]
[Result "1-0"]
[ECO "B66"]
[WhiteElo "2373"]
[BlackElo "2461"]
[Annotator "ChessBase"]
[PlyCount "71"]
[EventDate "2019.08.02"]
[EventType "swiss"]
[EventCountry "ESP"]
[SourceTitle "playchess.com"]
[Source "ChessBase"]
[SourceQuality "1"]
[TimeControl "5400+30"]

1. e4 {[%emt 0:00:00]} c5 {[%emt 0:13:31]} 2. Nf3 {[%emt 0:01:06]} d6 {[%emt 0:00:04]} 3. d4 cxd4 {[%emt 0:00:02]} 4. Nxd4 {[%emt 0:01:00]} Nf6 5. Nc3 {[%emt 0:00:10]} Nc6 {[%emt 0:00:32]} 6. Bg5 {[%emt 0:00:54]} e6 {[%emt 0:00:00]} 7. Qd2 {[%emt 0:00:38]} a6 {[%emt 0:00:00]} 8. O-O-O h6 9. Nxc6 {[%emt 0:01:46]} bxc6 {[%emt 0:00:08]} 10. Bf4 {[%emt 0:00:08]} d5 {[%emt 0:00:00]} 11. Qe3 {[%emt 0:00:41]} Bb4 {[%emt 0:00:00]} 12. Be2 {[%emt 0:01:12]} O-O {[%emt 0:00:00]} 13. e5 {[%emt 0:00:18]} Nd7 {[%emt 0:00:00]} 14. Qg3 {[%emt 0:11:41]} Qc7 {[%emt 0:00:00]} 15. Bxh6 {[%emt 0:03:36]} Qxe5 {[%emt 0:00:00]} 16. f4 {[%emt 0:00:06]} Qf6 {[%emt 0:00:29]} 17. Bg5 {[%emt 0:05:29]} Qg6 {[%emt 0:10:19]} 18. h4 f6 {[%emt 0:00:02]} 19. h5 {[%emt 0:06:17]} Qf7 {[%emt 0:04:46]} 20. Bh4 f5 21. h6 {[%emt 0:17:03]} g6 {[%emt 0:00:32]} 22. h7+ {[%emt 0:00:05]} Kh8 {[%emt 0:00:02]} 23. Bg5 {[%emt 0:01:28]} Bb7 {[%emt 0:09:12]} 24. Rh6 {[%emt 0:01:44]} Qg7 {[%emt 0:12:27]} 25. Rdh1 {[%emt 0:05:09]} Bd6 {[%emt 0:06:12]} 26. Be7 Qxe7 {[%emt 0:00:02]} 27. Rxg6 {[%emt 0:01:29]} Bxf4+ {[%emt 0:02:09]} 28. Qxf4 {[%emt 0:03:53]} Rf7 {[%emt 0:03:50]} 29. Qc7 Rxh7 {[%emt 0:01:26]} 30. Rxh7+ {[%emt 0:11:06]} Kxh7 {[%emt 0:06:44]} 31. Rg3 {[%emt 0:07:02]} Bc8 {[%emt 0:01:06]} 32. Qxc6 {[%emt 0:00:13]} Rb8 {[%emt 0:01:34]} 33. Nxd5 {[%emt 0:00:40]} Qf7 {[%emt 0:01:04]} 34. Qc3 {[%emt 0:03:15]} e5 {[%emt 0:01:33]} 35. Rg5 {[%emt 0:03:01]} Qe6 36. Rh5+ 1-0

[Event "XLV Badalona Open 2019"]
[Site "Badalona"]
[Date "2019.08.10"]
[Round "9.4"]
[White "Cruz, Filemon"]
[Black "Umetsubo, Cesar Hidemitsu"]
[Result "1/2-1/2"]
[ECO "D56"]
[WhiteElo "2304"]
[BlackElo "2406"]
[Annotator "NA"]
[PlyCount "26"]
[EventDate "2019.08.02"]
[EventType "swiss"]
[EventCountry "ESP"]
[SourceTitle "playchess.com"]
[Source "ChessBase"]
[SourceQuality "1"]
[TimeControl "5400+30"]

1. d4 d5 2. Nf3 {[%emt 0:08:32]} Nf6 {[%emt 0:00:44]} 3. c4 {[%emt 0:00:16]} e6 {[%emt 0:00:00]} 4. Nc3 {[%emt 0:00:35]} Be7 5. Bg5 h6 {[%emt 0:00:33]} 6. Bh4 {[%emt 0:00:25]} O-O {[%emt 0:00:10]} 7. e3 Ne4 {[%emt 0:09:54]} 8. Bxe7 {[%emt 0:00:35]} Qxe7 9. Qc2 {[%emt 0:00:00]} Nxc3 {[%emt 0:00:59]} 10. Qxc3 {[%emt 0:00:21]} dxc4 {[%emt 0:00:21]} 11. Bxc4 b6 12. O-O {[%emt 0:01:15]} Bb7 {[%emt 0:00:37]} 13. Be2 Rc8 1/2-1/2

[Event "XLV Badalona Open 2019"]
[Site "Badalona"]
[Date "2019.08.10"]
[Round "9.5"]
[White "Lopez Gonzalez, Abel Fabian"]
[Black "Perpinya Rofes, Lluis Maria"]
[Result "1-0"]
[ECO "B56"]
[WhiteElo "2355"]
[BlackElo "2319"]
[Annotator "NA"]
[PlyCount "59"]
[EventDate "2019.08.02"]
[EventType "swiss"]
[EventCountry "ESP"]
[SourceTitle "playchess.com"]
[Source "ChessBase"]
[SourceQuality "1"]
[TimeControl "5400+30"]

1. e4 {[%emt 0:13:27]} c5 {[%emt 0:00:00]} 2. Nf3 {[%emt 0:00:00]} Nc6 {[%emt 0:00:00]} 3. d4 {[%emt 0:00:00]} cxd4 {[%emt 0:00:11]} 4. Nxd4 {[%emt 0:00:00]} Nf6 {[%emt 0:00:08]} 5. Nc3 {[%emt 0:00:22]} d6 {[%emt 0:00:49]} 6. f3 {[%emt 0:00:10]} Nxd4 {[%emt 0:00:11]} 7. Qxd4 {[%emt 0:00:24]} g6 8. Bg5 {[%emt 0:00:10]} Bg7 {[%emt 0:00:59]} 9. O-O-O {[%emt 0:00:06]} O-O {[%emt 0:06:48]} 10. Qb4 {[%emt 0:00:05]} a5 {[%emt 0:08:37]} 11. Qa3 {[%emt 0:00:08]} Be6 {[%emt 0:01:05]} 12. e5 {[%emt 0:00:05]} Ne8 {[%emt 0:07:02]} 13. f4 {[%emt 0:02:44]} f6 {[%emt 0:01:22]} 14. exf6 {[%emt 0:10:30]} Nxf6 {[%emt 0:05:23]} 15. Re1 {[%emt 0:00:26]} Bf7 {[%emt 0:09:41]} 16. Bd3 {[%emt 0:12:32]} Rc8 {[%emt 0:15:34]} 17. Re2 {[%emt 0:08:46]} Qb6 {[%emt 0:01:12]} 18. Rxe7 {[%emt 0:21:46]} Rfe8 {[%emt 0:00:08]} 19. Rxe8+ {[%emt 0:13:24]} Rxe8 {[%emt 0:08:15]} 20. f5 {[%emt 0:09:59]} gxf5 {[%emt 0:14:40]} 21. Rd1 {[%emt 0:00:46]} Kh8 {[%emt 0:00:53]} 22. Bxf5 {[%emt 0:00:07]} Qf2 {[%emt 0:04:45]} 23. g4 {[%emt 0:01:10]} h6 {[%emt 0:04:05]} 24. Bd2 {[%emt 0:01:51]} d5 {[%emt 0:04:47]} 25. Nb5 {[%emt 0:01:59]} Ne4 {[%emt 0:02:39]} 26. Be3 {[%emt 0:00:33]} Qe2 {[%emt 0:00:39]} 27. Nd4 {[%emt 0:00:15]} Qxh2 28. Bd7 {[%emt 0:00:19]} Rf8 {[%emt 0:01:58]} 29. Nf5 {[%emt 0:00:15]} Qc7 {[%emt 0:02:05]} 30. Bd4 1-0

[Event "XLV Badalona Open 2019"]
[Site "Badalona"]
[Date "2019.08.10"]
[Round "9.6"]
[White "Gelas, Christophe"]
[Black "Oliva Castaneda, Kevel"]
[Result "1/2-1/2"]
[ECO "E59"]
[WhiteElo "2317"]
[BlackElo "2467"]
[Annotator "ChessBase"]
[PlyCount "79"]
[EventDate "2019.08.02"]
[EventType "swiss"]
[EventCountry "ESP"]
[SourceTitle "playchess.com"]
[Source "ChessBase"]
[SourceQuality "1"]
[TimeControl "5400+30"]

1. d4 {[%emt 0:00:00]} Nf6 {[%emt 0:00:00]} 2. c4 {[%emt 0:00:00]} e6 {[%emt 0:00:00]} 3. Nc3 {[%emt 0:00:00]} Bb4 {[%emt 0:00:00]} 4. e3 {[%emt 0:00:00]} O-O {[%emt 0:00:26]} 5. Bd3 {[%emt 0:00:01]} d5 6. Nf3 {[%emt 0:00:20]} c5 {[%emt 0:03:01]} 7. O-O {[%emt 0:03:23]} Nc6 {[%emt 0:04:58]} 8. a3 {[%emt 0:00:09]} Bxc3 {[%emt 0:03:20]} 9. bxc3 {[%emt 0:00:06]} dxc4 {[%emt 0:01:47]} 10. Bxc4 {[%emt 0:15:31]} Qc7 {[%emt 0:01:08]} 11. Qe2 {[%emt 0:02:25]} e5 {[%emt 0:01:27]} 12. d5 {[%emt 0:00:25]} e4 {[%emt 0:02:21]} 13. dxc6 {[%emt 0:08:02]} exf3 {[%emt 0:00:27]} 14. Qxf3 Bg4 {[%emt 0:00:07]} 15. Qg3 {[%emt 0:16:40]} Qxc6 {[%emt 0:00:09]} 16. f3 Be6 17. Bxe6 {[%emt 0:04:11]} Qxe6 {[%emt 0:00:35]} 18. e4 {[%emt 0:05:33]} Rfd8 {[%emt 0:08:36]} 19. Bg5 h6 {[%emt 0:00:05]} 20. Bxf6 {[%emt 0:01:23]} Qxf6 {[%emt 0:04:58]} 21. f4 {[%emt 0:14:22]} Rd2 {[%emt 0:00:41]} 22. Qe3 {[%emt 0:00:33]} Rad8 {[%emt 0:14:09]} 23. Qxc5 {[%emt 0:00:52]} Qg6 {[%emt 0:01:03]} 24. Rf2 {[%emt 0:03:21]} Qxe4 {[%emt 0:02:42]} 25. Qxa7 {[%emt 0:04:33]} Rd1+ 26. Rxd1 {[%emt 0:00:05]} Rxd1+ {[%emt 0:00:33]} 27. Rf1 {[%emt 0:00:02]} Rd2 {[%emt 0:07:59]} 28. Rf2 Kh7 29. h3 {[%emt 0:04:05]} Rd1+ {[%emt 0:01:04]} 30. Rf1 {[%emt 0:02:02]} Rd3 {[%emt 0:00:48]} 31. Qc5 Rd2 {[%emt 0:04:09]} 32. Rf2 {[%emt 0:00:47]} Rd5 {[%emt 0:00:09]} 33. Qb6 {[%emt 0:01:29]} h5 {[%emt 0:00:42]} 34. Kh2 {[%emt 0:04:04]} Rd1 {[%emt 0:04:45]} 35. Qb5 {[%emt 0:03:14]} g6 {[%emt 0:05:11]} 36. Qe2 {[%emt 0:00:39]} Qd5 {[%emt 0:01:27]} 37. Qf3 {[%emt 0:03:05]} Qd7 {[%emt 0:00:59]} 38. f5 {[%emt 0:02:55]} Qc7+ {[%emt 0:02:08]} 39. g3 {[%emt 0:01:51]} Rd7 40. fxg6+ 1/2-1/2

[Event "XLV Badalona Open 2019"]
[Site "Badalona"]
[Date "2019.08.10"]
[Round "9.7"]
[White "Corrales Jimenez, Zenia"]
[Black "Munoz, Miguel"]
[Result "0-1"]
[ECO "B01"]
[WhiteElo "2212"]
[BlackElo "2511"]
[Annotator "ChessBase"]
[PlyCount "100"]
[EventDate "2019.08.02"]
[EventType "swiss"]
[EventCountry "ESP"]
[SourceTitle "playchess.com"]
[Source "ChessBase"]
[SourceQuality "1"]
[TimeControl "5400+30"]

1. e4 d5 {[%emt 0:01:29]} 2. exd5 {[%emt 0:03:14]} Qxd5 {[%emt 0:00:06]} 3. Nc3 {[%emt 0:00:00]} Qa5 {[%emt 0:00:05]} 4. d4 {[%emt 0:00:11]} Nf6 {[%emt 0:00:32]} 5. Nf3 {[%emt 0:00:38]} Bg4 {[%emt 0:01:03]} 6. h3 {[%emt 0:00:08]} Bxf3 {[%emt 0:00:07]} 7. Qxf3 {[%emt 0:02:23]} c6 {[%emt 0:00:12]} 8. Bd2 Nbd7 {[%emt 0:00:20]} 9. O-O-O {[%emt 0:05:17]} e6 {[%emt 0:00:14]} 10. Kb1 {[%emt 0:00:35]} Bb4 {[%emt 0:01:17]} 11. g4 {[%emt 0:00:23]} Bxc3 12. Qxc3 {[%emt 0:00:07]} Qxc3 {[%emt 0:01:24]} 13. Bxc3 {[%emt 0:02:11]} h5 {[%emt 0:09:26]} 14. Bg2 {[%emt 0:05:05]} O-O-O {[%emt 0:01:35]} 15. g5 Nd5 {[%emt 0:00:08]} 16. Bd2 {[%emt 0:00:42]} N7b6 {[%emt 0:00:09]} 17. b3 {[%emt 0:17:20]} Ne7 {[%emt 0:04:28]} 18. Bc3 {[%emt 0:09:18]} Nf5 {[%emt 0:05:10]} 19. Bb2 {[%emt 0:04:43]} Nd5 {[%emt 0:06:33]} 20. Be4 {[%emt 0:09:58]} Rd7 {[%emt 0:07:25]} 21. Bxf5 {[%emt 0:00:04]} exf5 {[%emt 0:00:51]} 22. Rde1 {[%emt 0:09:25]} Rhd8 {[%emt 0:01:01]} 23. Re5 {[%emt 0:01:03]} g6 {[%emt 0:00:56]} 24. h4 {[%emt 0:05:43]} Nf4 {[%emt 0:05:35]} 25. b4 {[%emt 0:04:13]} Rd5 {[%emt 0:02:44]} 26. Re7 {[%emt 0:00:25]} R5d7 {[%emt 0:01:21]} 27. Re5 {[%emt 0:03:00]} Rd6 {[%emt 0:06:33]} 28. Re7 Nd5 {[%emt 0:00:05]} 29. Rxf7 {[%emt 0:01:00]} Nxb4 {[%emt 0:00:43]} 30. Re1 {[%emt 0:05:32]} Nd5 {[%emt 0:01:50]} 31. c4 {[%emt 0:00:13]} Nf4 {[%emt 0:07:15]} 32. d5 Ng2 {[%emt 0:00:29]} 33. Ree7 {[%emt 0:01:27]} R6d7 {[%emt 0:08:23]} 34. Be5 {[%emt 0:07:33]} cxd5 {[%emt 0:00:30]} 35. c5 {[%emt 0:01:52]} d4 {[%emt 0:02:13]} 36. Rxd7 {[%emt 0:00:01]} Rxd7 {[%emt 0:00:30]} 37. Rf8+ {[%emt 0:00:02]} Rd8 {[%emt 0:00:01]} 38. Rf7 {[%emt 0:03:20]} Rd5 {[%emt 0:00:32]} 39. Bd6 b6 {[%emt 0:00:30]} 40. Rxa7 {[%emt 0:01:38]} bxc5 {[%emt 0:00:23]} 41. Be7 {[%emt 0:01:07]} Nxh4 {[%emt 0:05:24]} 42. Ra6 {[%emt 0:00:21]} Kd7 {[%emt 0:01:19]} 43. Bf8 {[%emt 0:00:05]} c4 {[%emt 0:01:00]} 44. Bg7 {[%emt 0:00:58]} f4 {[%emt 0:03:04]} 45. Rf6 {[%emt 0:00:29]} d3 {[%emt 0:02:11]} 46. Kc1 {[%emt 0:00:22]} c3 {[%emt 0:00:14]} 47. Rf7+ {[%emt 0:00:24]} Ke6 {[%emt 0:00:41]} 48. Rc7 {[%emt 0:00:09]} c2 {[%emt 0:00:21]} 49. Bc3 {[%emt 0:00:25]} Nf3 {[%emt 0:00:15]} 50. Rc4 {[%emt 0:01:08]} Rxg5 {[%emt 0:01:21]} 0-1

[Event "XLV Badalona Open 2019"]
[Site "Badalona"]
[Date "2019.08.10"]
[Round "9.8"]
[White "Bru Rullo, Samuel"]
[Black "Bedoya Rosales, Luis"]
[Result "1/2-1/2"]
[ECO "E71"]
[WhiteElo "1867"]
[BlackElo "1924"]
[Annotator "NA"]
[PlyCount "36"]
[EventDate "2019.08.02"]
[EventType "swiss"]
[EventCountry "ESP"]
[SourceTitle "playchess.com"]
[Source "ChessBase"]
[SourceQuality "1"]
[TimeControl "5400+30"]

1. d4 {[%emt 0:00:00]} g6 {[%emt 0:00:00]} 2. c4 {[%emt 0:00:00]} Bg7 {[%emt 0:00:00]} 3. Nc3 {[%emt 0:00:12]} Nf6 4. e4 {[%emt 0:00:22]} d6 {[%emt 0:00:23]} 5. h3 {[%emt 0:00:45]} O-O {[%emt 0:01:02]} 6. Nf3 {[%emt 0:01:01]} Na6 {[%emt 0:00:51]} 7. Be3 {[%emt 0:00:08]} c5 {[%emt 0:04:42]} 8. d5 {[%emt 0:00:07]} e6 {[%emt 0:02:57]} 9. Bd3 {[%emt 0:00:09]} exd5 {[%emt 0:06:54]} 10. exd5 {[%emt 0:00:09]} Re8 {[%emt 0:07:09]} 11. O-O Nc7 12. Qd2 a6 13. a4 b6 14. Rfe1 Rb8 15. Bh6 Bd7 16. Bxg7 Kxg7 17. Rxe8 Qxe8 18. Re1 Qd8 1/2-1/2

[Event "XLV Badalona Open 2019"]
[Site "Badalona"]
[Date "2019.08.10"]
[Round "9.9"]
[White "Lozano Ruiz, David"]
[Black "Malonda Rey, Albert"]
[Result "0-1"]
[ECO "E85"]
[WhiteElo "1882"]
[BlackElo "1758"]
[Annotator "NA"]
[PlyCount "35"]
[EventDate "2019.08.02"]
[EventType "swiss"]
[EventCountry "ESP"]
[SourceTitle "playchess.com"]
[Source "ChessBase"]
[SourceQuality "1"]
[TimeControl "5400+30"]

1. d4 {[%emt 0:00:00]} Nf6 {[%emt 0:00:00]} 2. c4 {[%emt 0:00:00]} g6 {[%emt 0:00:00]} 3. Nc3 {[%emt 0:00:00]} Bg7 {[%emt 0:00:00]} 4. e4 {[%emt 0:00:00]} d6 5. f3 O-O {[%emt 0:00:41]} 6. Be3 {[%emt 0:00:00]} e5 {[%emt 0:01:23]} 7. Nge2 {[%emt 0:01:13]} a5 {[%emt 0:05:03]} 8. Qd2 {[%emt 0:00:23]} Be6 {[%emt 0:00:10]} 9. d5 {[%emt 0:00:21]} Bd7 {[%emt 0:00:35]} 10. g4 {[%emt 0:00:19]} h5 {[%emt 0:03:54]} 11. h3 {[%emt 0:01:20]} Na6 {[%emt 0:05:24]} 12. Bg5 {[%emt 0:01:08]} Qb8 {[%emt 0:06:44]} 13. Ng3 Nh7 {[%emt 0:01:05]} 14. gxh5 {[%emt 0:03:45]} Nxg5 {[%emt 0:00:45]} 15. Qxg5 {[%emt 0:01:23]} Qd8 {[%emt 0:00:13]} 16. Qxd8 {[%emt 0:09:20]} Raxd8 17. O-O-O {[%emt 0:00:02]} Bh6+ {[%emt 0:01:05]} 18. Kb1 0-1

[Event "XLV Badalona Open 2019"]
[Site "Badalona"]
[Date "2019.08.10"]
[Round "9.10"]
[White "Walter Travella, German"]
[Black "Jimenez Molina, Victor"]
[Result "1/2-1/2"]
[ECO "B42"]
[WhiteElo "1940"]
[BlackElo "1592"]
[Annotator "NA"]
[PlyCount "92"]
[EventDate "2019.08.02"]
[EventType "swiss"]
[EventCountry "ESP"]
[SourceTitle "playchess.com"]
[Source "ChessBase"]
[SourceQuality "1"]
[TimeControl "5400+30"]

1. e4 e6 2. d4 c5 3. Nf3 cxd4 4. Nxd4 a6 5. Bd3 Qc7 6. Be3 Nf6 7. Qd2 Ng4 8. Bf4 e5 9. Bg3 d6 10. Nf3 Nc6 11. c3 Be7 12. Na3 O-O 13. Nc2 Qb6 14. h3 Nf6 15. Ne3 Be6 16. Bh4 Rad8 17. Bxf6 Bxf6 18. Nd5 Bxd5 19. exd5 Ne7 20. Be4 Ng6 21. g3 Ne7 22. g4 g6 23. O-O-O Bg7 24. Rdg1 Rc8 25. h4 Rc4 26. Bc2 Qc5 27. Bb3 Rf4 28. Rg3 f5 29. g5 b5 30. Kb1 a5 31. a3 b4 32. cxb4 axb4 33. Rc1 Qa5 34. axb4 Qxb4 35. Qxb4 Rxb4 36. Nd2 Rfb8 37. Rc7 Kf8 38. Rgc3 Rxh4 39. Rd7 Rd4 40. Kc2 Nxd5 41. Bxd5 Rxd5 42. b4 e4 43. Rcc7 Be5 44. Nc4 Re8 45. Nxe5 Rdxe5 46. Rf7+ Kg8 1/2-1/2